[Event "16th EWICC 2015"]
[Site "Kutaisi"]
[Date "2015.06.01"]
[Round "1"]
[White "Ibrahimova, Sabina"]
[Black "Melia, Salome"]
[Result "1-0"]
[ECO "B35"]
[WhiteElo "2272"]
[BlackElo "2452"]
[Annotator "Robot 11"]
[PlyCount "162"]
[EventDate "2015.??.??"]
[EventCountry "GEO"]
[TimeControl "900+10"]

1. e4 {[%emt 0:00:02]} c5 {[%emt 0:00:01]} 2. Nf3 {[%emt 0:00:02]} Nc6 {[%emt
0:00:01]} 3. d4 {[%emt 0:00:02]} cxd4 {[%emt 0:00:01]} 4. Nxd4 {[%emt 0:00:02]}
g6 {[%emt 0:00:01]} 5. Nc3 {[%emt 0:00:03]} Bg7 {[%emt 0:00:02]} 6. Be3 {[%emt
0:00:02]} Nf6 {[%emt 0:00:02]} 7. Bc4 {[%emt 0:00:02]} Qa5 {[%emt 0:00:08]} 8.
O-O {[%emt 0:00:06]} O-O {[%emt 0:00:22]} 9. Bb3 {[%emt 0:00:11]} d6 {[%emt 0:
00:33]} 10. h3 {[%emt 0:00:06]} Bd7 {[%emt 0:01:11]} 11. Nf3 {[%emt 0:01:41]}
Rac8 {[%emt 0:01:17]} 12. Re1 {[%emt 0:01:01]} Qh5 {[%emt 0:00:41]} 13. Bf4 {
[%emt 0:03:16]} Rfd8 {[%emt 0:00:50]} 14. Ng5 {[%emt 0:00:27]} Qxd1 {[%emt 0:
00:19]} 15. Raxd1 {[%emt 0:01:32]} Be8 {[%emt 0:01:01]} 16. Nf3 {[%emt 0:01:06]
} Nd7 17. Nd5 {[%emt 0:00:01]} Bxb2 {[%emt 0:01:05]} 18. Bg5 {[%emt 0:01:54]}
Nf6 {[%emt 0:03:44]} 19. Rb1 {[%emt 0:00:35]} h6 {[%emt 0:00:23]} 20. Bxh6 {
[%emt 0:01:21]} Ba3 {[%emt 0:00:16]} 21. Bg5 {[%emt 0:01:23]} Kg7 {[%emt 0:00:
47]} 22. Rbd1 {[%emt 0:00:54]} Bc5 {[%emt 0:02:31]} 23. Bc1 {[%emt 0:00:58]} b5
{[%emt 0:00:01]} 24. Bb2 {[%emt 0:00:26]} a5 25. g4 {[%emt 0:00:07]} e5 {[%emt
0:00:39]} 26. Nxf6 {[%emt 0:00:10]} Kxf6 {[%emt 0:00:03]} 27. Bd5 {[%emt 0:00:
54]} Nb4 28. Re2 {[%emt 0:00:03]} Nxd5 {[%emt 0:00:39]} 29. exd5 {[%emt 0:00:
04]} Kg7 {[%emt 0:00:02]} 30. g5 {[%emt 0:00:03]} Bd7 {[%emt 0:00:12]} 31. Kg2
{[%emt 0:00:10]} Bb6 {[%emt 0:00:34]} 32. Kg3 {[%emt 0:00:37]} Rc4 {[%emt 0:00:
16]} 33. c3 {[%emt 0:00:22]} Rh8 {[%emt 0:00:17]} 34. Rh1 {[%emt 0:00:06]} Bc8
{[%emt 0:00:24]} 35. Rh2 {[%emt 0:00:17]} a4 {[%emt 0:00:14]} 36. a3 {[%emt 0:
00:13]} Ba5 {[%emt 0:00:02]} 37. Re3 {[%emt 0:00:03]} Bb7 {[%emt 0:00:12]} 38.
Nd2 {[%emt 0:00:08]} Rch4 {[%emt 0:00:02]} 39. Rd3 {[%emt 0:00:19]} Bc8 {[%emt
0:00:08]} 40. Kg2 {[%emt 0:00:01]} R8h5 {[%emt 0:00:11]} 41. Rg3 {[%emt 0:00:
16]} Bb7 {[%emt 0:00:02]} 42. Rd3 {[%emt 0:00:13]} Rxg5+ {[%emt 0:00:02]} 43.
Kf1 {[%emt 0:00:02]} Rf5 {[%emt 0:00:11]} 44. Rg2 {[%emt 0:00:19]} Rhf4 {[%emt
0:00:28]} 45. Ke2 {[%emt 0:00:09]} Kg8 {[%emt 0:00:11]} 46. f3 {[%emt 0:00:06]}
Rh4 {[%emt 0:00:03]} 47. Ne4 {[%emt 0:00:03]} Bc7 48. Rg3 Kg7 {[%emt 0:00:40]}
49. Bc1 {[%emt 0:00:13]} Rfh5 50. Bg5 Rxh3 {[%emt 0:00:12]} 51. Rxh3 {[%emt 0:
00:32]} Rxh3 {[%emt 0:00:02]} 52. Be7 {[%emt 0:00:01]} Rh2+ {[%emt 0:00:20]}
53. Kd1 {[%emt 0:00:07]} Ba6 {[%emt 0:00:50]} 54. Nxd6 {[%emt 0:00:36]} Bxd6 {
[%emt 0:01:03]} 55. Bxd6 {[%emt 0:00:01]} Rh1+ {[%emt 0:00:10]} 56. Kd2 {[%emt
0:00:13]} b4 {[%emt 0:00:02]} 57. Re3 {[%emt 0:00:10]} b3 {[%emt 0:00:07]} 58.
c4 {[%emt 0:00:09]} f6 {[%emt 0:00:12]} 59. Kc3 {[%emt 0:00:29]} Rc1+ {[%emt 0:
00:06]} 60. Kb2 {[%emt 0:00:03]} Rc2+ {[%emt 0:00:05]} 61. Kb1 {[%emt 0:00:03]}
Bxc4 {[%emt 0:00:04]} 62. f4 {[%emt 0:00:11]} Rd2 {[%emt 0:00:38]} 63. fxe5 {
[%emt 0:00:05]} Bd3+ {[%emt 0:00:11]} 64. Kc1 {[%emt 0:00:30]} Rc2+ {[%emt 0:
00:15]} 65. Kb1 {[%emt 0:00:06]} Rd2+ {[%emt 0:00:20]} 66. Kc1 {[%emt 0:00:00]}
b2+ {[%emt 0:00:06]} 67. Kxd2 {[%emt 0:00:01]} b1=Q {[%emt 0:00:02]} 68. Rxd3 {
[%emt 0:00:18]} Qb2+ {[%emt 0:00:06]} 69. Ke3 {[%emt 0:00:07]} fxe5 {[%emt 0:
00:03]} 70. Bb4 {[%emt 0:00:04]} Qc1+ {[%emt 0:00:12]} 71. Ke2 {[%emt 0:00:05]}
e4 {[%emt 0:00:12]} 72. Rd2 {[%emt 0:00:07]} Qc4+ {[%emt 0:00:03]} 73. Ke3 {
[%emt 0:00:01]} Kf7 {[%emt 0:00:38]} 74. d6 {[%emt 0:00:02]} Qb3+ {[%emt 0:00:
01]} 75. Kxe4 {[%emt 0:00:04]} Qe6+ {[%emt 0:00:06]} 76. Kf3 {[%emt 0:00:16]}
Qf5+ {[%emt 0:00:09]} 77. Ke3 {[%emt 0:00:05]} Qe5+ {[%emt 0:00:12]} 78. Kf3 {
[%emt 0:00:02]} Ke8 {[%emt 0:00:10]} 79. Re2 {[%emt 0:00:02]} Qxe2+ {[%emt 0:
00:17]} 80. Kxe2 {[%emt 0:00:01]} Kd7 {[%emt 0:00:01]} 81. Kf3 {[%emt 0:00:01]}
Ke8 1-0

[Event "16th EWICC 2015"]
[Site "Kutaisi"]
[Date "2015.06.01"]
[Round "1"]
[White "Khomeriki, Nino"]
[Black "Javakhishvili, Lela"]
[Result "1/2-1/2"]
[ECO "A04"]
[WhiteElo "2228"]
[BlackElo "2472"]
[Annotator "Robot 11"]
[PlyCount "85"]
[EventDate "2015.??.??"]
[EventCountry "GEO"]
[TimeControl "900+10"]

1. Nf3 {[%emt 0:00:03]} g6 {[%emt 0:00:06]} 2. g3 {[%emt 0:00:05]} Bg7 {[%emt
0:00:03]} 3. Bg2 {[%emt 0:00:03]} e5 {[%emt 0:00:07]} 4. d3 {[%emt 0:00:47]} d5
{[%emt 0:00:09]} 5. Nbd2 {[%emt 0:03:04]} Ne7 {[%emt 0:00:05]} 6. e4 {[%emt 0:
01:09]} c6 {[%emt 0:00:31]} 7. O-O {[%emt 0:00:25]} O-O {[%emt 0:00:09]} 8. Qe2
{[%emt 0:02:22]} Nd7 {[%emt 0:01:11]} 9. b3 {[%emt 0:01:34]} Re8 {[%emt 0:00:
30]} 10. Bb2 {[%emt 0:00:13]} d4 {[%emt 0:00:25]} 11. a4 {[%emt 0:00:49]} a5 {
[%emt 0:01:17]} 12. Nc4 {[%emt 0:00:32]} Qc7 {[%emt 0:00:18]} 13. Ba3 {[%emt 0:
00:07]} c5 {[%emt 0:01:55]} 14. Nfd2 {[%emt 0:00:49]} Nf8 {[%emt 0:00:18]} 15.
f4 {[%emt 0:00:58]} exf4 {[%emt 0:00:15]} 16. gxf4 {[%emt 0:00:01]} Nd5 {[%emt
0:00:31]} 17. e5 {[%emt 0:00:21]} Nc3 {[%emt 0:00:28]} 18. Qf2 {[%emt 0:00:01]}
Ra6 {[%emt 0:01:14]} 19. Rae1 {[%emt 0:00:20]} b5 {[%emt 0:00:38]} 20. Nd6 {
[%emt 0:00:07]} Bd7 {[%emt 0:01:09]} 21. Nxe8 {[%emt 0:00:44]} Bxe8 {[%emt 0:
00:01]} 22. axb5 {[%emt 0:00:09]} Nxb5 {[%emt 0:00:04]} 23. Bc1 {[%emt 0:00:09]
} Bd7 {[%emt 0:00:17]} 24. Ne4 {[%emt 0:00:36]} Be6 {[%emt 0:00:32]} 25. Qh4 {
[%emt 0:00:14]} Nc3 {[%emt 0:00:56]} 26. Nf6+ {[%emt 0:00:07]} Kh8 {[%emt 0:00:
14]} 27. Ne8 {[%emt 0:00:14]} Qc8 {[%emt 0:00:15]} 28. Nxg7 {[%emt 0:00:02]}
Kxg7 {[%emt 0:00:01]} 29. f5 {[%emt 0:00:39]} Bxf5 {[%emt 0:00:05]} 30. Bg5 {
[%emt 0:00:03]} h5 {[%emt 0:00:32]} 31. Bf6+ {[%emt 0:00:10]} Kg8 {[%emt 0:00:
09]} 32. Rf2 {[%emt 0:01:25]} Nh7 {[%emt 0:00:22]} 33. Ref1 {[%emt 0:00:16]}
Be6 {[%emt 0:00:23]} 34. Qf4 {[%emt 0:00:30]} Qf8 {[%emt 0:00:23]} 35. Bf3 {
[%emt 0:00:19]} Nd5 {[%emt 0:00:10]} 36. Qh4 {[%emt 0:00:52]} Ne3 {[%emt 0:00:
14]} 37. Re1 {[%emt 0:00:17]} Qh6 {[%emt 0:01:05]} 38. Bb7 {[%emt 0:00:13]} Ra7
{[%emt 0:00:15]} 39. Be4 {[%emt 0:00:03]} Ng4 {[%emt 0:00:15]} 40. Rg2 {[%emt
0:00:10]} Ne3 {[%emt 0:01:05]} 41. Rf2 {[%emt 0:00:05]} Ng4 {[%emt 0:00:09]}
42. Rg2 {[%emt 0:00:04]} Ne3 {[%emt 0:00:25]} 43. Rf2 {[%emt 0:00:17]} 1/2-1/2

[Event "16th EWICC 2015"]
[Site "Kutaisi"]
[Date "2015.06.01"]
[Round "1"]
[White "Khurtsidze, Nino"]
[Black "Khomeriki, Ketevan"]
[Result "1-0"]
[ECO "D37"]
[WhiteElo "2451"]
[BlackElo "1861"]
[Annotator "Robot 11"]
[PlyCount "39"]
[EventDate "2015.??.??"]
[EventCountry "GEO"]
[TimeControl "900+10"]

1. d4 {[%emt 0:00:03]} d5 {[%emt 0:00:04]} 2. c4 {[%emt 0:00:02]} e6 {[%emt 0:
00:02]} 3. Nc3 {[%emt 0:00:02]} Nf6 {[%emt 0:00:02]} 4. Nf3 {[%emt 0:00:02]}
Be7 {[%emt 0:00:08]} 5. Bf4 {[%emt 0:00:02]} c6 {[%emt 0:00:19]} 6. e3 {[%emt
0:00:02]} Nbd7 {[%emt 0:00:09]} 7. h3 {[%emt 0:00:02]} dxc4 {[%emt 0:00:09]} 8.
Bxc4 {[%emt 0:00:01]} Nb6 {[%emt 0:00:04]} 9. Bb3 {[%emt 0:00:07]} Nbd5 {[%emt
0:00:14]} 10. O-O {[%emt 0:00:06]} Nxf4 {[%emt 0:00:16]} 11. exf4 {[%emt 0:00:
02]} Qc7 {[%emt 0:00:38]} 12. Ne5 {[%emt 0:00:09]} Nd5 {[%emt 0:00:30]} 13. Qf3
{[%emt 0:00:28]} O-O {[%emt 0:00:23]} 14. Rfe1 {[%emt 0:00:55]} Bd6 {[%emt 0:
02:30]} 15. Ne4 {[%emt 0:00:29]} Bxe5 {[%emt 0:03:47]} 16. fxe5 {[%emt 0:00:10]
} b6 {[%emt 0:01:04]} 17. Qh5 {[%emt 0:00:24]} Ba6 {[%emt 0:01:25]} 18. Rad1 {
[%emt 0:00:54]} Rad8 {[%emt 0:01:04]} 19. Bc2 {[%emt 0:00:13]} Nf4 {[%emt 0:00:
17]} 20. Nf6+ {[%emt 0:00:13]} 1-0

[Event "16th EWICC 2015"]
[Site "Kutaisi"]
[Date "2015.06.01"]
[Round "1"]
[White "Kostava, Elene"]
[Black "Mikadze, Miranda"]
[Result "0-1"]
[ECO "D17"]
[WhiteElo "1691"]
[BlackElo "2233"]
[Annotator "Robot 11"]
[PlyCount "118"]
[EventDate "2015.??.??"]
[EventCountry "GEO"]
[TimeControl "900+10"]

1. d4 {[%emt 0:00:02]} d5 {[%emt 0:00:00]} 2. Nf3 {[%emt 0:00:04]} Nf6 {[%emt
0:00:02]} 3. c4 {[%emt 0:00:01]} c6 {[%emt 0:00:01]} 4. Nc3 {[%emt 0:00:02]}
dxc4 {[%emt 0:00:01]} 5. a4 {[%emt 0:00:02]} Bf5 {[%emt 0:00:01]} 6. Ne5 {
[%emt 0:00:03]} Nbd7 {[%emt 0:00:01]} 7. Bf4 {[%emt 0:00:45]} Nd5 {[%emt 0:00:
37]} 8. Bg3 {[%emt 0:00:24]} Nxe5 {[%emt 0:01:12]} 9. Bxe5 {[%emt 0:00:05]} e6
{[%emt 0:00:21]} 10. e3 {[%emt 0:01:38]} Bb4 {[%emt 0:00:47]} 11. Rc1 {[%emt 0:
00:06]} f6 {[%emt 0:01:07]} 12. Bg3 {[%emt 0:00:07]} Nxc3 {[%emt 0:03:02]} 13.
bxc3 {[%emt 0:00:04]} Ba3 {[%emt 0:00:02]} 14. Bxc4 Bxc1 15. Qxc1 Be4 16. f3
Bd5 17. Bd3 c5 18. Bb5+ Bc6 19. Bxc6+ bxc6 20. O-O Qd5 21. Rd1 cxd4 22. Rxd4
Qa2 23. Bd6 Rd8 24. Qd1 Kf7 25. Bc7 Rxd4 26. Qxd4 Qb1+ 27. Kf2 Qb7 28. Qd7+ Kg6
29. Qd3+ f5 30. Qd7 Qc8 31. Qd6 Re8 32. Qg3+ Kf7 33. Be5 Rg8 34. Qh4 h6 35.
Qh5+ Ke7 36. Qg6 Qe8 37. Qg3 Kf7 38. Bd6 Qd7 39. c4 c5 40. Qe5 Rc8 41. Bxc5 Qc7
42. Qxc7+ Rxc7 43. Bd6 Rxc4 44. a5 Ke8 45. Bb8 a6 46. Ba7 Kd7 47. Bd4 g6 48.
Ke2 Rc2+ 49. Kf1 Kc6 50. h3 Kb5 51. Bb6 Kc4 52. g4 Kd3 53. gxf5 gxf5 54. h4 Rh2
55. h5 Rxh5 56. Kf2 Rh1 57. Kg2 Re1 58. Kf2 Re2+ 59. Kg3 Rxe3 0-1

[Event "16th EWICC 2015"]
[Site "Kutaisi"]
[Date "2015.06.01"]
[Round "1"]
[White "Kosteniuk, Alexandra"]
[Black "Mammadzada, Gunay"]
[Result "1-0"]
[ECO "B52"]
[WhiteElo "2530"]
[BlackElo "2336"]
[Annotator "Robot 11"]
[PlyCount "73"]
[EventDate "2015.??.??"]
[EventCountry "GEO"]
[TimeControl "900+10"]

1. e4 {[%emt 0:00:02]} c5 {[%emt 0:00:00]} 2. Nf3 {[%emt 0:00:01]} d6 {[%emt 0:
00:04]} 3. Bb5+ {[%emt 0:00:02]} Bd7 {[%emt 0:00:01]} 4. Bxd7+ {[%emt 0:00:02]}
Qxd7 {[%emt 0:00:02]} 5. d4 {[%emt 0:00:02]} cxd4 {[%emt 0:00:05]} 6. Qxd4 {
[%emt 0:00:01]} Nc6 {[%emt 0:00:09]} 7. Qd3 {[%emt 0:00:01]} g6 {[%emt 0:00:47]
} 8. O-O {[%emt 0:00:02]} Nf6 {[%emt 0:00:01]} 9. h3 {[%emt 0:00:04]} Bg7 {
[%emt 0:00:01]} 10. c4 {[%emt 0:00:01]} O-O {[%emt 0:00:04]} 11. Nc3 {[%emt 0:
00:02]} Rfc8 {[%emt 0:00:07]} 12. Rb1 {[%emt 0:00:02]} Qd8 {[%emt 0:00:58]} 13.
Qe2 {[%emt 0:00:59]} Nd7 {[%emt 0:00:19]} 14. Nd5 {[%emt 0:00:04]} e6 {[%emt 0:
00:30]} 15. Ne3 {[%emt 0:00:36]} a6 {[%emt 0:00:23]} 16. Rd1 {[%emt 0:00:34]}
Qe7 {[%emt 0:00:51]} 17. b3 {[%emt 0:00:20]} Nc5 {[%emt 0:01:39]} 18. Ng4 {
[%emt 0:00:02]} h5 {[%emt 0:01:02]} 19. Nh6+ {[%emt 0:00:45]} Kh8 {[%emt 0:01:
43]} 20. Qe3 {[%emt 0:03:48]} f6 {[%emt 0:02:55]} 21. Rxd6 {[%emt 0:00:56]} Nd7
{[%emt 0:01:51]} 22. Ba3 {[%emt 0:03:53]} Qe8 {[%emt 0:00:59]} 23. Rbd1 {[%emt
0:00:33]} Rc7 {[%emt 0:01:18]} 24. Qd2 {[%emt 0:02:40]} Nf8 {[%emt 0:00:50]}
25. e5 {[%emt 0:00:40]} Kh7 {[%emt 0:01:11]} 26. Bc1 {[%emt 0:00:07]} g5 {
[%emt 0:00:23]} 27. exf6 {[%emt 0:00:03]} Bxh6 {[%emt 0:00:02]} 28. h4 {[%emt
0:00:01]} Ng6 {[%emt 0:00:46]} 29. Nxg5+ {[%emt 0:00:04]} Bxg5 {[%emt 0:00:26]}
30. Qxg5 {[%emt 0:00:04]} Nge5 {[%emt 0:00:04]} 31. Bf4 {[%emt 0:00:50]} Qg6 {
[%emt 0:00:18]} 32. Rxe6 {[%emt 0:00:02]} Qxg5 {[%emt 0:00:10]} 33. hxg5 {
[%emt 0:00:01]} Rd7 {[%emt 0:00:05]} 34. Rd5 {[%emt 0:01:10]} Rxd5 {[%emt 0:00:
21]} 35. cxd5 {[%emt 0:00:01]} Ng6 {[%emt 0:00:06]} 36. f7 {[%emt 0:01:22]}
Nce7 {[%emt 0:00:10]} 37. Bd6 {[%emt 0:00:28]} 1-0

[Event "16th EWICC 2015"]
[Site "Kutaisi"]
[Date "2015.06.01"]
[Round "1"]
[White "Mammadova, Gulnar"]
[Black "Jalaghonia, Nino"]
[Result "1-0"]
[ECO "B27"]
[WhiteElo "2293"]
[BlackElo "1865"]
[Annotator "Robot 11"]
[PlyCount "75"]
[EventDate "2015.??.??"]
[EventCountry "GEO"]
[TimeControl "900+10"]

1. e4 {[%emt 0:00:02]} c5 {[%emt 0:00:01]} 2. Nf3 {[%emt 0:00:06]} g6 {[%emt 0:
00:02]} 3. Nc3 {[%emt 0:00:21]} Bg7 {[%emt 0:00:02]} 4. g3 {[%emt 0:00:12]} Nc6
{[%emt 0:00:02]} 5. Bg2 {[%emt 0:00:01]} d6 {[%emt 0:00:10]} 6. O-O {[%emt 0:
00:04]} Nf6 {[%emt 0:00:20]} 7. d3 {[%emt 0:00:09]} O-O {[%emt 0:00:09]} 8. Nh4
{[%emt 0:00:27]} Nd4 {[%emt 0:00:26]} 9. h3 {[%emt 0:00:10]} Rb8 {[%emt 0:01:
12]} 10. Be3 {[%emt 0:00:35]} b5 {[%emt 0:00:19]} 11. Ne2 {[%emt 0:00:41]} Nd7
{[%emt 0:00:08]} 12. c3 {[%emt 0:01:14]} Nxe2+ {[%emt 0:00:06]} 13. Qxe2 {
[%emt 0:00:02]} b4 {[%emt 0:02:42]} 14. c4 {[%emt 0:00:07]} b3 {[%emt 0:01:39]}
15. a3 {[%emt 0:00:58]} a5 {[%emt 0:02:48]} 16. f4 {[%emt 0:00:22]} a4 {[%emt
0:00:47]} 17. Nf3 {[%emt 0:01:01]} Bb7 {[%emt 0:00:39]} 18. g4 {[%emt 0:00:08]}
e6 {[%emt 0:00:42]} 19. Bf2 {[%emt 0:00:39]} Qe8 {[%emt 0:01:07]} 20. Rae1 {
[%emt 0:01:59]} f5 {[%emt 0:00:16]} 21. exf5 {[%emt 0:00:09]} exf5 {[%emt 0:00:
01]} 22. Qd2 {[%emt 0:00:02]} Qc8 {[%emt 0:00:55]} 23. Bh4 {[%emt 0:01:46]} Nf6
{[%emt 0:00:54]} 24. g5 {[%emt 0:00:36]} Ne8 {[%emt 0:00:42]} 25. Bf2 {[%emt 0:
00:18]} Nc7 {[%emt 0:00:08]} 26. d4 {[%emt 0:00:20]} cxd4 {[%emt 0:00:53]} 27.
Bxd4 {[%emt 0:00:14]} d5 {[%emt 0:00:42]} 28. Bxg7 {[%emt 0:01:13]} Kxg7 {
[%emt 0:00:01]} 29. Re7+ {[%emt 0:00:02]} Kg8 {[%emt 0:00:01]} 30. Rfe1 {[%emt
0:00:55]} dxc4 {[%emt 0:00:18]} 31. Qd4 {[%emt 0:01:14]} Ne8 {[%emt 0:00:01]}
32. Bf1 {[%emt 0:00:09]} Ba6 {[%emt 0:00:37]} 33. Ne5 {[%emt 0:00:27]} Qd8 {
[%emt 0:00:31]} 34. Bxc4+ {[%emt 0:00:32]} Bxc4 {[%emt 0:00:08]} 35. Qxc4+ {
[%emt 0:00:01]} Kh8 {[%emt 0:00:09]} 36. Nf7+ {[%emt 0:00:10]} Rxf7 {[%emt 0:
00:03]} 37. Qxf7 {[%emt 0:00:56]} Qb6+ {[%emt 0:00:10]} 38. R1e3 {[%emt 0:00:
08]} 1-0

[Event "16th EWICC 2015"]
[Site "Kutaisi"]
[Date "2015.06.01"]
[Round "1"]
[White "Melashvili, Nino"]
[Black "Galliamova, Alisa"]
[Result "0-1"]
[ECO "D02"]
[WhiteElo "2173"]
[BlackElo "2478"]
[Annotator "Robot 11"]
[PlyCount "55"]
[EventDate "2015.??.??"]
[EventCountry "GEO"]
[TimeControl "900+10"]

1. Nf3 {[%emt 0:00:02]} d5 {[%emt 0:00:02]} 2. d4 {[%emt 0:00:01]} Nf6 {[%emt
0:00:01]} 3. Bf4 {[%emt 0:00:01]} c5 {[%emt 0:00:01]} 4. e3 {[%emt 0:00:02]}
Nc6 {[%emt 0:00:01]} 5. c3 {[%emt 0:00:01]} Qb6 {[%emt 0:00:01]} 6. Qc2 {[%emt
0:00:01]} Nh5 {[%emt 0:00:56]} 7. Bg5 {[%emt 0:00:31]} h6 {[%emt 0:00:13]} 8.
Bh4 {[%emt 0:00:03]} g5 {[%emt 0:00:12]} 9. Bg3 {[%emt 0:00:00]} Nxg3 {[%emt 0:
00:12]} 10. hxg3 {[%emt 0:00:01]} g4 {[%emt 0:01:42]} 11. dxc5 {[%emt 0:02:56]}
Qxc5 {[%emt 0:00:08]} 12. Nd4 {[%emt 0:00:00]} e5 {[%emt 0:00:16]} 13. Nf5 {
[%emt 0:00:27]} Bd7 {[%emt 0:03:33]} 14. Na3 {[%emt 0:00:04]} O-O-O {[%emt 0:
01:50]} 15. O-O-O {[%emt 0:00:02]} Kb8 {[%emt 0:00:06]} 16. Kb1 {[%emt 0:00:03]
} Qa5 {[%emt 0:00:14]} 17. Nb5 {[%emt 0:03:33]} a6 {[%emt 0:00:43]} 18. Nbd6 {
[%emt 0:00:10]} Be6 {[%emt 0:00:17]} 19. e4 {[%emt 0:01:00]} Bxd6 {[%emt 0:00:
14]} 20. exd5 {[%emt 0:00:02]} Bxd5 {[%emt 0:00:19]} 21. Nxd6 {[%emt 0:00:03]}
Qxa2+ {[%emt 0:00:19]} 22. Kc1 {[%emt 0:00:02]} Rxd6 {[%emt 0:00:15]} 23. c4 {
[%emt 0:00:33]} Nb4 {[%emt 0:00:22]} 24. Qc3 {[%emt 0:00:40]} Qa1+ {[%emt 0:00:
22]} 25. Kd2 {[%emt 0:00:01]} Be4+ {[%emt 0:00:23]} 26. Bd3 {[%emt 0:00:00]}
Rxd3+ {[%emt 0:00:15]} 27. Qxd3 {[%emt 0:00:03]} Qxb2+ {[%emt 0:00:10]} 28. Ke1
0-1

[Event "16th EWICC 2015"]
[Site "Kutaisi"]
[Date "2015.06.01"]
[Round "1"]
[White "Paehtz, Elisabeth"]
[Black "Gevorgyan, Maria"]
[Result "1-0"]
[ECO "D70"]
[WhiteElo "2473"]
[BlackElo "2190"]
[Annotator "Robot 11"]
[PlyCount "99"]
[EventDate "2015.??.??"]
[EventCountry "GEO"]
[TimeControl "900+10"]

1. Nf3 {[%emt 0:00:01]} d5 {[%emt 0:00:11]} 2. c4 {[%emt 0:00:02]} c6 {[%emt 0:
00:01]} 3. d4 {[%emt 0:00:08]} Nf6 {[%emt 0:00:02]} 4. Nbd2 {[%emt 0:00:01]} a6
{[%emt 0:00:09]} 5. Qc2 {[%emt 0:00:27]} g6 {[%emt 0:00:42]} 6. e4 {[%emt 0:00:
59]} dxe4 {[%emt 0:00:37]} 7. Nxe4 {[%emt 0:00:01]} Nxe4 {[%emt 0:00:07]} 8.
Qxe4 {[%emt 0:00:02]} Bf5 {[%emt 0:00:04]} 9. Qe5 {[%emt 0:00:06]} f6 {[%emt 0:
00:40]} 10. Qe3 {[%emt 0:00:07]} Bg7 {[%emt 0:00:35]} 11. Be2 {[%emt 0:00:24]}
O-O {[%emt 0:01:38]} 12. O-O {[%emt 0:00:03]} Qc7 {[%emt 0:00:10]} 13. Bd2 {
[%emt 0:00:10]} e5 {[%emt 0:02:23]} 14. dxe5 {[%emt 0:00:07]} fxe5 {[%emt 0:00:
01]} 15. Ng5 {[%emt 0:01:07]} h6 {[%emt 0:02:36]} 16. Ne4 {[%emt 0:00:05]} b6 {
[%emt 0:00:31]} 17. Bf3 {[%emt 0:03:07]} Nd7 {[%emt 0:00:59]} 18. Bb4 {[%emt 0:
01:04]} c5 {[%emt 0:01:03]} 19. Bc3 {[%emt 0:00:20]} Rad8 {[%emt 0:01:51]} 20.
Rad1 {[%emt 0:00:02]} Nb8 {[%emt 0:00:01]} 21. b4 {[%emt 0:00:23]} Rd4 {[%emt
0:00:54]} 22. Bxd4 {[%emt 0:00:26]} exd4 {[%emt 0:00:02]} 23. Qa3 {[%emt 0:00:
12]} Nd7 {[%emt 0:00:10]} 24. Ng3 {[%emt 0:00:08]} Be6 {[%emt 0:00:25]} 25. Be2
{[%emt 0:00:48]} a5 {[%emt 0:01:01]} 26. bxa5 {[%emt 0:00:08]} Ra8 {[%emt 0:00:
03]} 27. a6 {[%emt 0:00:11]} Nb8 {[%emt 0:00:03]} 28. Qd3 {[%emt 0:00:56]} Bf7
{[%emt 0:00:05]} 29. Bf3 {[%emt 0:00:30]} Rxa6 {[%emt 0:00:08]} 30. Rfe1 {
[%emt 0:00:24]} Nd7 {[%emt 0:00:11]} 31. Bd5 {[%emt 0:00:07]} Ne5 {[%emt 0:00:
02]} 32. Qe4 {[%emt 0:00:25]} Kh7 {[%emt 0:01:01]} 33. h4 {[%emt 0:01:21]} Nxc4
{[%emt 0:00:04]} 34. h5 {[%emt 0:00:14]} b5 {[%emt 0:00:39]} 35. hxg6+ {[%emt
0:01:05]} Bxg6 {[%emt 0:00:01]} 36. Qh4 {[%emt 0:00:04]} Rxa2 {[%emt 0:00:57]}
37. Re7 {[%emt 0:00:15]} Qd6 {[%emt 0:00:14]} 38. Be4 {[%emt 0:00:10]} Kg8 {
[%emt 0:00:18]} 39. Bxg6 {[%emt 0:00:33]} Qxg6 {[%emt 0:00:03]} 40. Nh5 {[%emt
0:00:12]} Ne3 {[%emt 0:00:03]} 41. Rxg7+ {[%emt 0:00:14]} Qxg7 {[%emt 0:00:01]}
42. Nxg7 {[%emt 0:00:02]} Nxd1 {[%emt 0:00:07]} 43. Qf6 {[%emt 0:00:11]} Rxf2 {
[%emt 0:00:15]} 44. Nf5 {[%emt 0:00:13]} Rxf5 {[%emt 0:00:15]} 45. Qxf5 {[%emt
0:00:02]} c4 {[%emt 0:00:15]} 46. Qg4+ {[%emt 0:00:01]} Kf7 {[%emt 0:00:03]}
47. Qxd1 {[%emt 0:00:02]} d3 {[%emt 0:00:01]} 48. Qh5+ {[%emt 0:00:10]} Ke7 {
[%emt 0:00:30]} 49. Qxb5 {[%emt 0:00:01]} d2 {[%emt 0:00:04]} 50. Qb4+ {[%emt
0:00:01]} 1-0

[Event "16th EWICC 2015"]
[Site "Kutaisi"]
[Date "2015.06.01"]
[Round "1"]
[White "Petrenko, Svetlana"]
[Black "Gaponenko, Inna"]
[Result "0-1"]
[ECO "B08"]
[WhiteElo "2207"]
[BlackElo "2391"]
[Annotator "Robot 11"]
[PlyCount "88"]
[EventDate "2015.??.??"]
[EventCountry "GEO"]
[TimeControl "900+10"]

1. e4 {[%emt 0:00:01]} d6 {[%emt 0:00:01]} 2. d4 {[%emt 0:00:01]} Nf6 {[%emt 0:
00:01]} 3. Nc3 {[%emt 0:00:02]} g6 {[%emt 0:00:01]} 4. Nf3 {[%emt 0:00:10]} Bg7
{[%emt 0:00:01]} 5. Be2 {[%emt 0:00:03]} O-O {[%emt 0:00:03]} 6. O-O {[%emt 0:
00:02]} Nbd7 {[%emt 0:00:15]} 7. h3 {[%emt 0:00:09]} c5 {[%emt 0:00:01]} 8. d5
{[%emt 0:00:22]} a6 {[%emt 0:00:02]} 9. a4 {[%emt 0:00:02]} Ne5 {[%emt 0:00:48]
} 10. Nh2 {[%emt 0:00:16]} Ne8 {[%emt 0:00:28]} 11. f4 {[%emt 0:00:10]} Nd7 {
[%emt 0:00:01]} 12. f5 {[%emt 0:00:10]} Ne5 {[%emt 0:00:19]} 13. g4 {[%emt 0:
00:14]} Rb8 {[%emt 0:00:04]} 14. a5 {[%emt 0:00:44]} b5 {[%emt 0:00:06]} 15.
axb6 {[%emt 0:00:02]} Rxb6 {[%emt 0:00:18]} 16. Nf3 {[%emt 0:00:54]} Nxf3+ {
[%emt 0:00:22]} 17. Rxf3 {[%emt 0:00:03]} Nf6 {[%emt 0:00:03]} 18. g5 {[%emt 0:
01:26]} Nd7 {[%emt 0:00:58]} 19. Qf1 {[%emt 0:00:47]} Ne5 {[%emt 0:02:00]} 20.
Rg3 {[%emt 0:00:11]} f6 {[%emt 0:00:03]} 21. Bxa6 {[%emt 0:01:18]} Bxa6 {[%emt
0:02:44]} 22. Rxa6 {[%emt 0:00:03]} Rxa6 {[%emt 0:00:01]} 23. Qxa6 {[%emt 0:00:
02]} fxg5 {[%emt 0:00:01]} 24. Bxg5 {[%emt 0:00:35]} gxf5 {[%emt 0:00:02]} 25.
Bh6 {[%emt 0:02:40]} Ng6 {[%emt 0:00:04]} 26. Bxg7 {[%emt 0:00:03]} Kxg7 {
[%emt 0:00:02]} 27. Qa7 {[%emt 0:01:37]} f4 {[%emt 0:01:35]} 28. Rg5 {[%emt 0:
00:31]} Kh6 {[%emt 0:02:23]} 29. Rf5 {[%emt 0:01:20]} Qc8 {[%emt 0:00:01]} 30.
Rxf8 {[%emt 0:00:52]} Qxf8 {[%emt 0:00:01]} 31. Qd7 {[%emt 0:00:37]} Qg7 {
[%emt 0:00:25]} 32. Qg4 {[%emt 0:00:24]} Qd4+ {[%emt 0:00:06]} 33. Kh2 {[%emt
0:00:53]} Qf2+ {[%emt 0:04:25]} 34. Qg2 {[%emt 0:00:08]} Qe1 {[%emt 0:00:01]}
35. Qg1 {[%emt 0:01:11]} Qh4 {[%emt 0:00:45]} 36. Nd1 {[%emt 0:01:58]} Ne5 {
[%emt 0:00:24]} 37. Qg2 {[%emt 0:00:02]} f3 {[%emt 0:00:41]} 38. Qd2+ {[%emt 0:
00:05]} Kg6 {[%emt 0:00:01]} 39. Nf2 {[%emt 0:00:08]} h5 {[%emt 0:00:02]} 40.
Nd3 {[%emt 0:00:55]} Ng4+ {[%emt 0:00:12]} 41. Kg1 {[%emt 0:00:02]} Qg3+ {
[%emt 0:00:06]} 42. Kh1 {[%emt 0:00:27]} Qxh3+ {[%emt 0:00:04]} 43. Kg1 {[%emt
0:00:00]} Qg3+ {[%emt 0:00:02]} 44. Kh1 {[%emt 0:00:03]} f2 {[%emt 0:00:23]}
0-1